Cogmind - Beta 16 @@@ ROGUE MODE // 2026.01.28 @ 15:28:14 Player: saltine Result: Destroyed by FW-BO4(R) with Subdweller Beam Cannon Performance ------------- Evolutions (0) 0 Regions Visited (2) 400 Robots Destroyed (11) 55 Value Destroyed (208) 208 Prototype IDs (0) 0 Alien Tech Used (0) 0 Bonus (0) 0 TOTAL SCORE: 663 Bonus ------- None Cogmind --------- Core Integrity 0/250 Matter 344/400 Energy 58/100 System Corruption 0% Temperature Cool (9) Movement Treading (240) Ox1 Location -10/Subcaves Parts ------- > --- POWER (1) -------- (None) > --- PROPULSION (2) --- Light Treads Wheel > --- UTILITY (2) ------ Large Storage Unit Medium Matter Pod > --- WEAPON (2) ------- Subdweller Laser Light Assault Rifle > --- INVENTORY (15) --- Light Ion Engine Wheel Subdweller Monowheel Subdweller Monowheel Small Storage Unit Seismic Detector EM Pulse Gun Subdweller Machine Gun Peak State ------------ > --- POWER ------------ Light Ion Engine > --- PROPULSION ------- Light Treads Light Treads > --- UTILITY ---------- Large Storage Unit Seismic Detector > --- WEAPON ----------- Assault Rifle Subdweller Machine Gun > --- INVENTORY -------- Light Ion Engine Wheel Wheel Subdweller Monowheel Small Storage Unit Medium Matter Pod EM Pulse Gun Salvaging Laser Light Assault Rifle [Rating: 9] Favorites ----------- Power Light Ion Engine Engine Light Ion Engine Propulsion Light Treads Treads Light Treads Wheel Wheel Utility Large Storage Unit Device Seismic Detector Storage Large Storage Unit Weapon Assault Rifle Energy Gun EM Pulse Gun Ballistic Gun Assault Rifle Special Weapon Mining Laser Build | -11 -10 -10 ------- Run | Yrd Mat Sub Slots Evolved . | . . . Power . | . . . Propulsion . | . . . Utility . | . . . Weapon . | . . . Parts Attached 15 | 7 1 7 Power 1 | 1 . . Engine 1 | 1 . . Core . | . . . Reactor . | . . . Propulsion 3 | 2 . 1 Treads 2 | 2 . . Leg . | . . . Wheel 1 | . . 1 Hover . | . . . Flight . | . . . Utility 4 | 2 1 1 Device 1 | 1 . . Storage 3 | 1 1 1 Processor . | . . . Hackware . | . . . Protection . | . . . Artifact . | . . . Weapon 7 | 2 . 5 Energy Gun 3 | . . 3 Energy Cannon . | . . . Ballistic Gun 3 | 2 . 1 Ballistic Cannon . | . . . Launcher . | . . . Special Weapon 1 | . . 1 Impact Weapon . | . . . Slashing Weapon . | . . . Piercing Weapon . | . . . Special Melee Weapon . | . . . Unidentified Prototypes . | . . . Parts Lost 5 | . . 5 Power 1 | . . 1 Propulsion 1 | . . 1 Utility . | . . . Weapon 3 | . . 3 Highest Loss Streak 2 | . . 2 To Critical Strikes . | . . . Average Backups 7 | 3 6 9 Power . | . 1 1 Propulsion 2 | 1 2 3 Utility 1 | . 1 2 Weapon 2 | . 2 2 Tool/Special . | . . . Unused Backups 4 | . . 4 Power 1 | . . 1 Propulsion 3 | . . 3 Utility . | . . . Weapon . | . . . Tool/Special . | . . . Average Slot Usage (%) 97 | . 100 96 Engine 12 | . 14 11 Treads 26 | . 28 25 Wheel 1 | . . 2 Device 11 | . 14 10 Storage 16 | . 14 17 Energy Gun 1 | . . 1 Ballistic Gun 26 | . 28 25 Peak Build Rating 9 | 7 7 9 Average Rating 7 | 5 7 8 On Entrance 4 | . 7 7 Avg Prop Armor Cover (%) 6 | . . 6 Naked Turns . | . . . Heaviest Build 31 | 12 27 31 Greatest Support 40 | 40 40 40 Greatest Overweight (x) 3 | 3 . 1 Average Overweight (x) . | . . . Largest Inventory Capacity 15 | 8 15 15 Average Capacity 12 | 7 13 15 Most Carried 10 | 6 7 10 Average Carried 7 | 3 6 9 Final Capacity 15 | 8 15 15 Final Carried 8 | 6 7 8 Class Distribution -------------------- 100% | Mutant Dominant Class ---------------- Mutant | -10/Materials Mutant | -10/Subcaves Resources | -11 -10 -10 ----------- Run | Yrd Mat Sub Matter Collected 536 | 400 . 136 Remotely . | . . . Salvage Created 392 | 176 . 216 Parts 23 | 11 . 12 Haulers Intercepted . | . . . Recyclers Shooed 1 | 1 . . Parts Field Recycled . | . . . Retrieved Matter . | . . . Parts Self-Destructed 7 | . . 7 Prevented . | . . . Parts Restored . | . . . Kills | -11 -10 -10 ------- Run | Yrd Mat Sub Combat Hostiles Destroyed 6 | . . 6 Guns 6 | . . 6 Classes Destroyed 5 | 3 . 2 Worker 1 | 1 . . Tunneler 3 | 3 . . Recycler 1 | 1 . . Swarmer 2 | . . 2 Subdweller 4 | . . 4 Best Kill Streak 4 | 4 . 3 Combat Bots Only 3 | . . 3 Max Kills in Single Turn 2 | 1 . 2 Gunslinging 1 | . . 1 Exploded . | . . . Melee . | . . . Uniques/NPCs Destroyed . | . . . Combat | -11 -10 -10 -------- Run | Yrd Mat Sub Hostile Shots Fired 48 | . . 48 Missed 15 | . . 15 Hits 33 | . . 33 Projectile 33 | . . 33 AOE 3 | . . 3 Damage Taken 841 | . . 841 Core 275 | . . 275 Absorbed by Shields . | . . . Core Remaining (%) 100 | 100 . . Volleys Fired 50 | 20 . 30 Largest 2 | 2 . 2 Hottest 100 | 40 . 100 Shots Fired 97 | 40 . 57 Gun 95 | 40 . 55 Cannon . | . . . Launcher . | . . . Special 2 | . . 2 Kinetic 89 | 40 . 49 Thermal 7 | . . 7 Explosive . | . . . Electromagnetic 1 | . . 1 Robot Hit Streak 14 | 6 . 14 Robot Miss Streak 4 | 4 . 2 Penetration Max . | . . . Secondary Targets 3 | . . 3 Max Gunslinging Chain 1 | . . 1 Shots Hit Robots 69 | 22 . 47 Core Hits 20 | 9 . 11 Critical Kills . | . . . Critical Parts Destroyed . | . . . Critical Strikes . | . . . Melee Attacks . | . . . Impact . | . . . Slashing . | . . . Piercing . | . . . Sneak Attacks . | . . . Combat Hostiles . | . . . Follow-up Attacks . | . . . Damage Inflicted 841 | 229 . 612 Guns 841 | 229 . 612 Cannons . | . . . Explosions . | . . . Melee . | . . . Ramming . | . . . Kinetic 805 | 229 . 576 Thermal 36 | . . 36 Explosive . | . . . Electromagnetic . | . . . Impact . | . . . Slashing . | . . . Piercing . | . . . Highest Corruption . | . . . Average Corruption . | . . . Corruption Purged . | . . . Corruption Blocked . | . . . Overload Shots . | . . . Overflow Damage . | . . . Projectiles . | . . . Explosions . | . . . Melee . | . . . Knockbacks . | . . . Impact . | . . . Kinetic . | . . . Secondary . | . . . Self-Inflicted Damage . | . . . Shots . | . . . Rammed . | . . . Targets Rammed . | . . . Kicked . | . . . Crushed . | . . . Highest Temperature 4 | . . 4 Average Temperature 4 | . . 4 Received Heat Transfer 147 | . . 147 Siege Activations . | . . . Martial Activations . | . . . Shielding Activations . | . . . Robots Disrupted . | . . . Combat Hostiles . | . . . Robots Corrupted . | . . . Combat Hostiles . | . . . Parts Fried . | . . . Impact Corruptions . | . . . Robots Melted . | . . . Combat Hostiles . | . . . Parts Melted . | . . . Heat Transferred 75 | . . 75 Parts Sabotaged . | . . . Parts Stolen . | . . . Parts Stripped . | . . . Power Chain Reactions . | . . . Alert | -11 -10 -10 ------- Run | Yrd Mat Sub Maximum Alert Level . | . . . Low Security (%) 100 | 100 100 . Level 1 . | . . . Level 2 . | . . . Level 3 . | . . . Level 4 . | . . . Level 5 . | . . . High Security . | . . . Max Security . | . . . Peak Influence 15 | 15 . . Initial . | . . . Average . | 1 . . Influence Increases 80 | 25 . 55 Destroy 0b10 Robot/C 40 | . . 40 Destroy 0b10 Robot/NC 25 | 25 . . Lose Combat Pursuer 15 | . . 15 Influence Decreases 80 | 25 . 55 Time Decay 60 | 25 . 35 Lost Part 20 | . . 20 Squads Dispatched . | . . . Investigation . | . . . Extermination . | . . . Reinforcement . | . . . Assault . | . . . Garrison . | . . . Intercept . | . . . Searches Triggered . | . . . Construction Impeded . | . . . Haulers Reinforced . | . . . Active Scanning Responses . | . . . Cargo Convoy Interrupts . | . . . Stealth | -11 -10 -10 --------- Run | Yrd Mat Sub Distress Signals . | . . . Communications Jammed . | . . . Distress Signals . | . . . Times Spotted 10 | . . 10 Peak Tracking Total 5 | . . 5 Tactical Retreats 1 | . . 1 Traps | -11 -10 -10 ------- Run | Yrd Mat Sub Traps Triggered . | . . . Indirectly . | . . . Trap Hack Attempts . | . . . Triggered . | . . . Disarmed . | . . . Reprogrammed . | . . . Reused . | . . . Traps Extracted . | . . . Installed . | . . . Triggered . | . . . Machines | -11 -10 -10 ---------- Run | Yrd Mat Sub Machines Disabled . | . . . Max in Single Turn . | . . . Machines Repaired . | . . . Machines Dismantled . | . . . Machines Sabotaged . | . . . Overloaded Fab Kills . | . . . Hacking | -11 -10 -10 --------- Run | Yrd Mat Sub Machines Accessed 1 | . . 1 Terminals . | . . . Fabricators . | . . . Repair Stations . | . . . Recycling Units . | . . . Scanalyzers . | . . . Garrison Access . | . . . Total Hacks 5 | . . 5 Successful 5 | . . 5 Failed . | . . . Catastrophic . | . . . Database Lockouts . | . . . Manual . | . . . Terminals . | . . . Fabricators . | . . . Repair Stations . | . . . Recycling Units . | . . . Scanalyzers . | . . . Garrison Access . | . . . Terminal Hacks 5 | . . 5 Record 5 | . . 5 Fabricator Hacks . | . . . Repair Station Hacks . | . . . Recycling Unit Hacks . | . . . Scanalyzer . | . . . Garrison Access Hacks . | . . . Unauthorized Hacks . | . . . Terminals . | . . . Fabricators . | . . . Repair Stations . | . . . Recycling Units . | . . . Scanalyzers . | . . . Garrison Access . | . . . Data Cores Recovered . | . . . Used . | . . . Hacking Detections . | . . . Full Trace Events . | . . . Feedback Events . | . . . Feedback Blocked . | . . . Robot Schematics Acquired . | . . . Robots Built . | . . . Authchips . | . . . Time . | . . . Total Robot Build Rating . | . . . Part Schematics Acquired . | . . . Parts Built . | . . . Authchips . | . . . Time . | . . . Total Part Build Rating . | . . . Part Studies Acquired . | . . . Parts Repaired . | . . . Time . | . . . Parts Recycled . | . . . Recycled Matter . | . . . Retrieved Matter . | . . . Retrieved Components . | . . . Parts Scanalyzed . | . . . Part Schematics Acquired . | . . . Parts Damaged . | . . . Bothacking | -11 -10 -10 ------------ Run | Yrd Mat Sub Used RIF Installer . | . . . Robots Hacked . | . . . Non-combat . | . . . Combat . | . . . Robot Hacks Applied . | . . . Relay Couplers Released . | . . . Fabnet Peak Effective % . | . . . Robots Rewired . | . . . Allies Hacked . | . . . Hacks Repelled . | . . . Allies | -11 -10 -10 -------- Run | Yrd Mat Sub Total Allies . | . . . Largest Group . | . . . Highest-Rated Group . | . . . Highest-Rated Ally . | . . . Total Orders . | . . . Ally Attacks . | . . . Total Damage . | . . . Kills . | . . . Allies Corrupted . | . . . Allies Melted . | . . . Intel | -11 -10 -10 ------- Run | Yrd Mat Sub Active Infowar (turns) 514 | 84 162 268 Seismic 514 | 84 162 268 Robot Analysis Total . | . . . Derelict Logs Recovered . | . . . Drone Launches . | . . . Drone Recoveries . | . . . Exploration | -11 -10 -10 ------------- Run | Yrd Mat Sub Turns Passed 792 | 250 162 380 Spaces Moved 316 | 112 34 170 Core 18 | 18 . . Treads 298 | 94 34 170 Legs . | . . . Wheels . | . . . Hover . | . . . Flight . | . . . Fastest Speed 50 | 50 160 160 Average Speed 161 | 159 160 162 Slowest Speed 240 | 200 160 240 Overloaded Moves . | . . . Propulsion Burnouts . | . . . Robots Hopped . | . . . Potential Cave-ins . | . . . Cave-ins Triggered . | . . . Exploration Rate (%) 8 | 6 7 11 Regions Visited 2 Branch Regions 1 Pre-discovered Areas 1 | . . 1 Known Exits Taken . | . . . Unknown Exits Taken 2 | 1 1 . Scrap Searched . | . . . Spaces Dug . | . . . Terrain Destroyed . | . . . Melee . | . . . Projectile . | . . . AOE . | . . . Terrain Rammed . | . . . Walls Destroyed . | . . . Machines Disabled . | . . . Actions | -11 -10 -10 --------- Run | Yrd Mat Sub Total 497 | 144 141 212 Wait 107 | . 107 . Move 314 | 111 33 170 Hop . | . . . Pick Up 10 | 6 . 4 Fast Attach 8 | 7 . 1 Attach 3 | . . 3 Detach . | . . . Swap 5 | . 1 4 Drop . | . . . Fire 50 | 20 . 30 Melee . | . . . Ram . | . . . Kick . | . . . Crush . | . . . Escape Stasis . | . . . Rewire . | . . . Trap . | . . . Miscellaneous . | . . . Route ------- -11/Scrapyard -10/Materials -10/Subcaves (discovered 2 exits: [*Mat] / Rec) History --------- Turn | Location | Event 13 | -11/Scrapyard | Discovered new exit (range 16) 251 | -11/Scrapyard | Entered Materials 252 | -10/Materials | Met a group of wandering Federalists 315 | -10/Materials | Build established: Mutant 410 | -10/Materials | Discovered new exit (range 3) 413 | -10/Materials | Entered Subcaves 414 | -10/Subcaves | Continued accompanying wandering Federalists (5) 415 | -10/Subcaves | Ambushed by Subdwellers from Twisted Machinery 461 | -10/Subcaves | Lost 5 allies 557 | -10/Subcaves | Visited Clippyterm 562 | -10/Subcaves | Identified exit to Recycling 562 | -10/Subcaves | Learned location of Section 7 (-2) 699 | -10/Subcaves | Discovered new exit (range 9) 712 | -10/Subcaves | A Subdweller sparked back to life 712 | -10/Subcaves | A Subdweller sparked back to life 712 | -10/Subcaves | A Subdweller sparked back to life 720 | -10/Subcaves | Ambushed by Subdweller buried in earth 734 | -10/Subcaves | Core integrity fell below 50% 777 | -10/Subcaves | Core integrity fell below 20% 793 | -10/Subcaves | Destroyed by FW-BO4(R) with Subdweller Beam Cannon Last Messages --------------- 00725_ S6-5T5(R) affixes Scrap Shield Fragment to Scrap Shield. 00725_ S6-5T5(R) destroyed. 00731_ ND-34B(R) destroyed. 00731_ Switching to secondary target: 1M-1MR(R). 00731_ S-10 Pest destroyed. 00737_ Flight Unit fries itself beyond repair. 00737_ 1M-1MR(R) destroyed. 00737_ Switching to secondary target: VQ-EGB(R). 00738_ VQ-EGB(R) affixes Scrap Shield Fragment to Scrap Shield. 00740_ Sub. Machine Gun shoots sparks and powers down. 00747_ Flight Unit fries itself beyond repair. 00748_ Lgt. Ion Engine fries itself beyond repair. 00750_ VQ-EGB(R) affixes Scrap Shield Fragment to Scrap Shield. 00757_ Assault Rifle destroyed. FW-BO4(R) emerges from concealment. 00770_ Salvaging Laser destroyed. 00772_ VQ-EGB(R) suffers critical hit (Meltdown). 00775_ Acquired 48 matter. 00780_ Acquired Sub. Laser. 00790_ FW-BO4(R) affixes Scrap Shield Fragment to Scrap Shield. Map ----- +----------------------------------------------------+ | ?????????????????????????????????????????????????? | | ?????????????????????????????????????????????????? | | ?????????????????????????????????????????????????? | | ?????????????????????????????????????????????????? | | ?????????????????????????????????????????????????? | | ?????????????????????????????????????????????????? | | ?????????????????????????????????????????????????? | | ?????????????????????????????????????????????????? | | ?????????????????????????????????????????????????? | | ?????????????????????????????????????????????????? | | ?????????????????????????????????????????????????? | | ?????????????????????????????????????????????????? | | ?????????????????????????????????????????????????? | | ??????????????????????###?? #????????????????????? | | ??????????????????????# #? #????????????????????? | | ?????????????????????? ? #????????????????????? | | ?????????????????????? ? ##???????????????????? | | ??????????????????????# ? #???????????????????? | | ?????????????????????? # ????????????????????? | | ??????????????????????# # #????????????????????? | | ??????????????????????# ##??????#????????????? | | ??????????????????????# ##???? #????????????? | | #?????????????????#???# #### #????????????? | | #????#####????????# ### #????????????? | | #????# ##????????# ; #????????????? | | #????# #####????# @ #?????????????? | | ####??# ##??##; * ! < ##???????????????? | | ##?# %#### & ###??????????????? | | ### <#??????????????? | | % !% <#?????????????? | | ## # # ; ; !